fUST/lending_fUST_20251018
["ID","MTS","AMOUNT","RATE_DAILY","PERIOD"]
[391677535,1760725852499,-703.96,0.0003178,5]
[391677537,1760725852509,-500.0,0.0003178,5]
[391677539,1760725852519,-500.0,0.0003178,5]
[391677541,1760725852528,-741.3,0.0003178,5]
[391677543,1760725852537,-300.76700342,0.0003178,5]
[391677545,1760725852546,-1917.86,0.0003178,2]
[391677547,1760725852556,-500.0,0.0003178,5]
[391677549,1760725852566,-500.0,0.0003178,5]
[391677551,1760725852581,-500.0,0.0003178,5]
[391677553,1760725852590,-878.46,0.0003178,5]
[391677555,1760725852599,-402.8237446,0.0003178,5]
[391677557,1760725852608,-500.0,0.0003178,5]
[391677559,1760725852618,-705.81,0.0003178,5]
[391677561,1760725852627,-500.0,0.0003178,5]
[391677563,1760725852636,-500.0,0.0003178,5]
[391677565,1760725852645,-500.0,0.0003178,5]
[391677566,1760725852654,-604.28,0.0003178,5]
[391677568,1760725852664,-1000.0,0.0003178,2]
[391677570,1760725852673,-500.0,0.0003178,5]
[391677572,1760725852682,-500.0,0.0003178,5]
[391677574,1760725852691,-500.0,0.0003178,5]
[391677576,1760725852703,-500.0,0.0003178,5]
[391677578,1760725852712,-516.43,0.0003178,5]
[391677581,1760725852722,-500.0,0.0003178,2]
[391677583,1760725852732,-500.0,0.0003178,5]
[391677585,1760725852742,-500.0,0.0003178,5]
[391677586,1760725852751,-500.0,0.0003178,5]
[391677589,1760725852761,-830.69,0.0003178,5]
[391677590,1760725852770,-500.0,0.0003178,5]
[391677593,1760725852780,-500.0,0.0003178,5]
[391677595,1760725852791,-500.0,0.0003178,5]
[391677597,1760725852801,-500.0,0.0003178,5]
[391677599,1760725852810,-1425.34,0.0003178,5]
[391677601,1760725852820,-683.45,0.0003178,3]
[391677603,1760725852830,-590.77,0.0003178,5]
[391677605,1760725852840,-500.0,0.0003178,5]
[391677607,1760725852848,-500.0,0.0003178,5]
[391677608,1760725852858,-500.0,0.0003178,5]
[391677611,1760725852868,-622.67,0.0003178,5]
[391677613,1760725852879,-562.64,0.0003178,5]
[391677615,1760725852888,-1219.05,0.0003178,5]
[391677617,1760725852897,-716.27,0.0003178,5]
[391677619,1760725852906,-500.0,0.0003178,5]
[391677621,1760725852915,-500.0,0.0003178,5]
[391677623,1760725852925,-500.0,0.0003178,5]
[391677625,1760725852935,-500.0,0.0003178,5]
[391677627,1760725852945,-500.0,0.0003178,5]
[391677629,1760725852955,-647.06,0.0003178,5]
[391677631,1760725852964,-500.79,0.0003178,5]
[391677633,1760725852973,-500.0,0.0003178,5]
[391677635,1760725852983,-500.0,0.0003178,5]
[391677637,1760725852992,-500.0,0.0003178,5]
[391677639,1760725853002,-500.0,0.0003178,2]
[391677641,1760725853011,-240.748734,0.00031784,20]
[391677643,1760725853020,-151.591364,0.00031784,20]
[391677645,1760725853030,-164.834816,0.00031784,20]
[391677647,1760725853039,-154.724296,0.00031784,20]
[391677649,1760725853048,-158.478751,0.00031784,20]
[391677651,1760725853057,-169.973116,0.00031784,20]
[391677653,1760725853067,-344.0,0.00031798,2]
[391677655,1760725853076,-397.5,0.00031805,2]
[391677657,1760725853085,-1117.01361676,0.00031816,4]
[391677658,1760725853094,-1267.33,0.00031844,15]
[391677661,1760725853105,-461.0,0.00031855,2]
[391677663,1760725853114,-12948.07,0.000319,7]
[391677665,1760725853123,-1267.33,0.00031944,15]
[391677667,1760725853131,-240.748734,0.00031951,10]
[391677669,1760725853140,-151.591364,0.00031951,10]
[391677671,1760725853149,-154.724296,0.00031951,10]
[391677673,1760725853158,-158.478751,0.00031951,10]
[391677674,1760725853168,-190.75,0.00032,2]
[391677676,1760725853177,-2110.82,0.00032,2]
[391677678,1760725853187,-1168.3516802,0.00032,2]
[391677680,1760725853198,-587.0,0.00032005,3]
[391677682,1760725853207,-420.0,0.00032005,3]
[391677684,1760725853216,-587.0,0.00032005,2]
[391677686,1760725853226,-497.0,0.00032005,3]
[391677688,1760725853238,-2351.0,0.00032007,3]
[391677690,1760725853248,-1267.33,0.00032044,15]
[391677692,1760725853257,-607.14972163,0.00032054,5]
[391677694,1760725853267,-500.0,0.00032054,5]
[391677696,1760725853278,-500.0,0.00032054,5]
[391677698,1760725853287,-500.0,0.00032054,5]
[391677700,1760725853296,-597.31,0.00032054,5]
[391677702,1760725853306,-653.4,0.00032054,5]
[391677703,1760725853317,-500.0,0.00032054,5]
[391677705,1760725853327,-500.0,0.00032054,5]
[391677707,1760725853336,-500.0,0.00032054,5]
[391677709,1760725853346,-500.0,0.00032054,5]
[391677711,1760725853355,-500.0,0.00032054,5]
[391677713,1760725853365,-500.0,0.00032054,5]
[391677715,1760725853375,-500.0,0.00032054,5]
[391677717,1760725853384,-500.0,0.00032054,5]
[391677719,1760725853395,-500.0,0.00032054,5]
[391677721,1760725853404,-500.0,0.00032054,5]
[391677723,1760725853413,-500.0,0.00032054,5]
[391677725,1760725853423,-500.0,0.00032054,5]
[391677727,1760725853432,-500.0,0.00032054,5]
[391677729,1760725853442,-500.0,0.00032054,5]
[391677731,1760725853451,-500.0,0.00032054,5]
[391677733,1760725853461,-735.28,0.00032054,5]
[391677734,1760725853470,-500.0,0.00032054,5]
[391677736,1760725853481,-500.0,0.00032054,5]
[391677739,1760725853490,-936.96,0.00032054,5]
[391677741,1760725853500,-519.52,0.00032054,5]
[391677743,1760725853509,-500.0,0.00032054,5]
[391677744,1760725853519,-500.0,0.00032054,5]
[391677746,1760725853528,-500.0,0.00032054,5]
[391677749,1760725853538,-1000.0,0.00032054,2]
[391677750,1760725853547,-500.0,0.00032054,5]
[391677752,1760725853556,-539.7,0.00032054,5]
[391677754,1760725853565,-500.0,0.00032054,5]
[391677756,1760725853575,-500.0,0.00032054,5]
[391677758,1760725853585,-500.0,0.00032054,5]
[391677760,1760725853595,-545.0,0.00032054,5]
[391677762,1760725853604,-500.0,0.00032054,5]
[391677765,1760725853615,-500.0,0.00032054,5]
[391677766,1760725853626,-703.96,0.00032054,5]
[391677768,1760725853635,-500.0,0.00032054,5]
[391677770,1760725853644,-500.0,0.00032054,5]
[391677772,1760725853653,-741.3,0.00032054,5]
[391677774,1760725853663,-1917.86,0.00032054,2]
[391677776,1760725853673,-500.0,0.00032054,5]
[391677778,1760725853682,-500.0,0.00032054,5]
[391677780,1760725853694,-500.0,0.00032054,5]
[391677782,1760725853710,-878.46,0.00032054,5]
[391677784,1760725853719,-500.0,0.00032054,5]
[391677786,1760725853728,-705.81,0.00032054,5]
[391677788,1760725853737,-500.0,0.00032054,5]
[391677790,1760725853747,-500.0,0.00032054,5]
[391677792,1760725853756,-500.0,0.00032054,5]
[391677794,1760725853765,-1000.0,0.00032054,2]
[391677795,1760725853774,-500.0,0.00032054,5]
[391677797,1760725853783,-500.0,0.00032054,5]
[391677799,1760725853793,-615.8013253,0.00032054,5]
[391677801,1760725853803,-500.0,0.00032054,5]
[391677803,1760725853813,-516.43,0.00032054,5]
[391677805,1760725853823,-500.0,0.00032054,2]
[391677808,1760725853832,-500.0,0.00032054,5]
[391677809,1760725853842,-500.0,0.00032054,5]
[391677811,1760725853851,-307.97205573,0.00032054,5]
[391677813,1760725853861,-830.69,0.00032054,5]
[391677815,1760725853872,-628.18442486,0.00032054,5]
[391677827,1760725853982,-500.0,0.00032054,5]
[391677829,1760725853993,-500.0,0.00032054,5]
[391677832,1760725854003,-500.0,0.00032054,5]
[391677834,1760725854013,-1425.34,0.00032054,5]
[391677836,1760725854023,-683.45,0.00032054,3]
[391677837,1760725854033,-590.77,0.00032054,5]
[391677839,1760725854042,-500.0,0.00032054,5]
[391677841,1760725854052,-500.0,0.00032054,5]
[391677843,1760725854062,-500.0,0.00032054,5]
[391677845,1760725854071,-622.67,0.00032054,5]
[391677847,1760725854081,-562.64,0.00032054,5]
[391677849,1760725854091,-1219.05,0.00032054,5]
[391677851,1760725854100,-716.27,0.00032054,5]
[391677853,1760725854110,-500.0,0.00032054,5]
[391677855,1760725854120,-500.0,0.00032054,5]
[391677857,1760725854130,-500.0,0.00032054,5]
[391677859,1760725854140,-500.0,0.00032054,5]
[391677861,1760725854150,-500.0,0.00032054,5]
[391677863,1760725854160,-647.06,0.00032054,5]
[391677865,1760725854170,-500.79,0.00032054,5]
[391677867,1760725854181,-500.0,0.00032054,5]
[391677869,1760725854191,-500.0,0.00032054,5]
[391677871,1760725854201,-500.0,0.00032054,5]
[391677873,1760725854212,-500.0,0.00032054,2]
[391677875,1760725854221,-344.0,0.00032099,2]
[391677877,1760725854231,-344.0,0.00032109,7]
[391677879,1760725854244,-450.0,0.00032116,5]
[391677881,1760725854254,-1267.33,0.00032144,15]
[391677883,1760725854263,-303.996349,0.00032164,5]
[391677885,1760725854272,-344.0,0.00032199,7]
[391677887,1760725854285,-168.0,0.00032207,2]
[391677889,1760725854295,-960.0,0.00032217,2]
[391677891,1760725854304,-1267.33,0.00032244,15]
[391677893,1760725854315,-460.0,0.00032252,2]
[391677895,1760725854325,-2351.0,0.00032286,3]
[391677897,1760725854335,-240.748734,0.00032301,10]
[391677899,1760725854344,-151.591364,0.00032301,10]
[391677901,1760725854353,-164.834816,0.00032301,10]
[391677903,1760725854362,-154.724296,0.00032301,10]
[391677905,1760725854372,-158.478751,0.00032301,10]
[391677907,1760725854381,-300.0,0.00032328,7]
[391677909,1760725854390,-500.0,0.00032328,5]
[391677911,1760725854399,-500.0,0.00032328,5]
[391677913,1760725854408,-500.0,0.00032328,5]
[391677914,1760725854417,-653.4,0.00032328,5]
[391677916,1760725854427,-500.0,0.00032328,5]
[391677918,1760725854436,-500.0,0.00032328,5]
[391677920,1760725854445,-500.0,0.00032328,5]
[391677922,1760725854455,-500.0,0.00032328,5]
[391677924,1760725854465,-378.81101766,0.00032328,5]
[391677926,1760725854474,-500.0,0.00032328,5]
[391677928,1760725854483,-500.0,0.00032328,5]
[391677930,1760725854492,-500.0,0.00032328,5]
[391677932,1760725854502,-508.74921819,0.00032328,5]
[391677934,1760725854511,-500.0,0.00032328,5]
[391677936,1760725854521,-500.0,0.00032328,5]
[391677938,1760725854530,-500.0,0.00032328,5]
[391677940,1760725854539,-500.0,0.00032328,5]
[391677942,1760725854549,-500.0,0.00032328,5]
[391677944,1760725854558,-500.0,0.00032328,5]
[391677946,1760725854567,-735.28,0.00032328,5]
[391677947,1760725854578,-500.0,0.00032328,5]
[391677949,1760725854588,-500.0,0.00032328,5]
[391677951,1760725854598,-936.96,0.00032328,5]
[391677953,1760725854607,-519.52,0.00032328,5]
[391677955,1760725854616,-500.0,0.00032328,5]
[391677957,1760725854625,-500.0,0.00032328,5]
[391677959,1760725854634,-500.0,0.00032328,5]
[391677961,1760725854644,-1000.0,0.00032328,2]
[391677963,1760725854653,-500.0,0.00032328,5]
[391677965,1760725854662,-539.7,0.00032328,5]
[391677967,1760725854671,-500.0,0.00032328,5]
[391677969,1760725854681,-241.16326799,0.00032328,5]
[391677971,1760725854694,-500.0,0.00032328,5]
[391677973,1760725854703,-545.0,0.00032328,5]
[391677975,1760725854712,-500.0,0.00032328,5]
[391677977,1760725854722,-500.0,0.00032328,5]
[391677979,1760725854731,-703.96,0.00032328,5]
[391677981,1760725854740,-500.0,0.00032328,5]
[391677982,1760725854749,-500.0,0.00032328,5]
[391677984,1760725854758,-741.3,0.00032328,5]
[391677986,1760725854767,-1917.86,0.00032328,2]
[391677988,1760725854777,-500.0,0.00032328,5]
[391677990,1760725854788,-500.0,0.00032328,5]
[391677992,1760725854797,-500.0,0.00032328,5]
[391677994,1760725854807,-878.46,0.00032328,5]
[391677996,1760725854816,-500.0,0.00032328,5]
[391677998,1760725854825,-705.81,0.00032328,5]
[391678000,1760725854834,-258.37076676,0.00032328,5]
[391678002,1760725854843,-500.0,0.00032328,5]
[391678004,1760725854853,-446.8887513,0.00032328,5]
[391678006,1760725854862,-1000.0,0.00032328,2]
[391678008,1760725854871,-500.0,0.00032328,5]
[391678010,1760725854881,-500.0,0.00032328,5]
[391678012,1760725854890,-500.0,0.00032328,5]
[391678014,1760725854899,-516.43,0.00032328,5]
[391678016,1760725854908,-500.0,0.00032328,2]
[391678018,1760725854917,-164.87066077,0.00032328,5]
[391678020,1760725854926,-500.0,0.00032328,5]
[391678022,1760725854935,-830.69,0.00032328,5]
[391678023,1760725854945,-500.0,0.00032328,5]
[391678026,1760725854955,-609.41248242,0.00032328,5]
[391678028,1760725854965,-504.63978428,0.00032328,5]
[391678029,1760725854974,-1425.34,0.00032328,5]
[391678032,1760725854984,-683.45,0.00032328,3]
[391678034,1760725854995,-590.77,0.00032328,5]
[391678036,1760725855004,-500.0,0.00032328,5]
[391678038,1760725855013,-500.0,0.00032328,5]
[391678039,1760725855023,-500.0,0.00032328,5]
[391678041,1760725855033,-622.67,0.00032328,5]
[391678043,1760725855043,-562.64,0.00032328,5]
[391678045,1760725855052,-1219.05,0.00032328,5]
[391678047,1760725855062,-716.27,0.00032328,5]
[391678049,1760725855071,-500.0,0.00032328,5]
[391678051,1760725855082,-500.0,0.00032328,5]
[391678053,1760725855091,-500.0,0.00032328,5]
[391678055,1760725855100,-500.0,0.00032328,5]
[391678057,1760725855111,-500.0,0.00032328,5]
[391678059,1760725855121,-647.06,0.00032328,5]
[391678061,1760725855131,-500.79,0.00032328,5]
[391678063,1760725855140,-500.0,0.00032328,5]
[391678065,1760725855150,-500.0,0.00032328,5]
[391678067,1760725855160,-500.0,0.00032328,5]
[391678069,1760725855169,-500.0,0.00032328,2]
[391678071,1760725855178,-1267.33,0.00032344,15]
[391678073,1760725855188,-344.0,0.00032374,2]
[391678075,1760725855199,-420.0,0.00032405,2]
[391678077,1760725855209,-461.0,0.00032417,7]
[391678079,1760725855218,-2841.79,0.0003244,14]
[391678081,1760725855228,-1267.33,0.00032444,15]
[391678083,1760725855240,-1267.33,0.00032544,15]
[391678085,1760725855249,-344.0,0.00032591,7]
[391678087,1760725855258,-1069.33,0.000326,2]
[391678089,1760725855268,-500.0,0.00032602,5]
[391678091,1760725855279,-500.0,0.00032602,5]
[391678092,1760725855288,-500.0,0.00032602,5]
[391678094,1760725855298,-653.4,0.00032602,5]
[391678096,1760725855308,-500.0,0.00032602,5]
[391678098,1760725855318,-507.62601996,0.00032602,5]
[391678100,1760725855328,-500.0,0.00032602,5]
[391678102,1760725855337,-500.0,0.00032602,5]
[391678104,1760725855347,-500.0,0.00032602,5]
[391678106,1760725855356,-500.0,0.00032602,5]
[391678108,1760725855365,-500.0,0.00032602,5]
[391678110,1760725855374,-500.0,0.00032602,5]
[391678112,1760725855383,-500.0,0.00032602,5]
[391678114,1760725855392,-318.0261609,0.00032602,5]
[391678116,1760725855402,-451.16575095,0.00032602,5]
[391678118,1760725855411,-500.0,0.00032602,5]
[391678119,1760725855419,-500.0,0.00032602,5]
[391678121,1760725855429,-735.28,0.00032602,5]
[391678123,1760725855438,-500.0,0.00032602,5]
[391678125,1760725855448,-500.0,0.00032602,5]
[391678126,1760725855457,-936.96,0.00032602,5]
[391678127,1760725855466,-519.52,0.00032602,5]
[391678128,1760725855476,-500.0,0.00032602,5]
[391678129,1760725855485,-500.0,0.00032602,5]
[391678130,1760725855494,-838.63150525,0.00032602,2]
[391678131,1760725855504,-500.0,0.00032602,5]
[391678132,1760725855513,-539.7,0.00032602,5]
[391678133,1760725855523,-500.0,0.00032602,5]
[391678134,1760725855532,-500.0,0.00032602,5]
[391678135,1760725855541,-545.0,0.00032602,5]
[391678136,1760725855551,-500.0,0.00032602,5]
[391678137,1760725855560,-500.0,0.00032602,5]
[391678138,1760725855570,-703.96,0.00032602,5]
[391678139,1760725855579,-500.0,0.00032602,5]
[391678140,1760725855589,-500.0,0.00032602,5]
[391678141,1760725855598,-741.3,0.00032602,5]
[391678143,1760725855607,-1917.86,0.00032602,2]
[391678144,1760725855617,-500.0,0.00032602,5]
[391678146,1760725855627,-500.0,0.00032602,5]
[391678149,1760725855636,-500.0,0.00032602,5]
[391678151,1760725855647,-878.46,0.00032602,5]
[391678153,1760725855656,-500.0,0.00032602,5]
[391678155,1760725855666,-705.81,0.00032602,5]
[391678156,1760725855675,-500.0,0.00032602,5]
[391678158,1760725855684,-1000.0,0.00032602,2]
[391678160,1760725855694,-500.0,0.00032602,5]
[391678162,1760725855704,-500.0,0.00032602,5]
[391678164,1760725855714,-500.0,0.00032602,5]
[391678166,1760725855723,-516.43,0.00032602,5]
[391678169,1760725855734,-500.0,0.00032602,2]
[391678170,1760725855745,-500.0,0.00032602,5]
[391678172,1760725855754,-830.69,0.00032602,5]
[391678174,1760725855763,-500.0,0.00032602,5]
[391678176,1760725855773,-1425.34,0.00032602,5]
[391678178,1760725855782,-683.45,0.00032602,3]
[391678180,1760725855792,-590.77,0.00032602,5]
[391678183,1760725855801,-500.0,0.00032602,5]
[391678184,1760725855811,-500.0,0.00032602,5]
[391678186,1760725855820,-500.0,0.00032602,5]
[391678188,1760725855830,-622.67,0.00032602,5]
[391678190,1760725855841,-562.64,0.00032602,5]
[391678192,1760725855850,-1219.05,0.00032602,5]
[391678194,1760725855860,-716.27,0.00032602,5]
[391678196,1760725855870,-500.0,0.00032602,5]
[391678199,1760725855880,-500.0,0.00032602,5]
[391678201,1760725855889,-500.0,0.00032602,5]
[391678203,1760725855899,-500.0,0.00032602,5]
[391678204,1760725855908,-500.0,0.00032602,5]
[391678206,1760725855918,-647.06,0.00032602,5]
[391678209,1760725855929,-500.79,0.00032602,5]
[391678211,1760725855938,-500.0,0.00032602,5]
[391678213,1760725855949,-500.0,0.00032602,5]
[391678215,1760725855959,-500.0,0.00032602,5]
[391678217,1760725855968,-500.0,0.00032602,2]
[391678219,1760725855978,-344.0,0.00032641,2]
[391678221,1760725855987,-1267.33,0.00032644,15]
[391678223,1760725855996,-550.0,0.00032664,5]
[391678225,1760725856005,-240.748734,0.000327,5]
[391678227,1760725856015,-456.44540952,0.00032727,2]
[391678229,1760725856024,-240.748734,0.00032737,5]
[391678231,1760725856033,-151.591364,0.00032737,5]
[391678233,1760725856042,-1267.33,0.00032744,15]
[391678234,1760725856051,-1060.0,0.00032765,2]
[391678236,1760725856060,-240.748734,0.00032775,5]
[391678238,1760725856070,-151.591364,0.00032775,5]
[391678241,1760725856080,-151.0,0.000328,13]
[391678243,1760725856089,-153.0,0.00032807,2]
[391678245,1760725856099,-153.0,0.00032807,2]
[391678246,1760725856107,-240.748734,0.00032812,5]
[391678248,1760725856117,-151.591364,0.00032812,5]
[391678250,1760725856126,-154.724296,0.00032812,5]
[391678252,1760725856136,-200.0,0.00032834,120]
[391678254,1760725856147,-344.0,0.00032841,2]
[391678256,1760725856157,-1267.33,0.00032844,15]
[391678258,1760725856166,-240.748734,0.0003285,5]
[391678260,1760725856176,-164.834816,0.0003285,5]
[391678262,1760725856185,-151.591364,0.0003285,5]
[391678264,1760725856194,-154.724296,0.0003285,5]
[391678266,1760725856203,-158.478751,0.0003285,5]
[391678268,1760725856213,-500.0,0.00032876,5]
[391678270,1760725856222,-500.0,0.00032876,5]
[391678272,1760725856232,-500.0,0.00032876,5]
[391678283,1760725856333,-653.4,0.00032876,5]
[391678285,1760725856343,-500.0,0.00032876,5]
[391678287,1760725856352,-500.0,0.00032876,5]
[391678289,1760725856361,-500.0,0.00032876,5]
[391678291,1760725856371,-500.0,0.00032876,5]
[391678293,1760725856380,-500.0,0.00032876,5]
[391678295,1760725856390,-273.63584228,0.00032876,5]
[391678297,1760725856399,-500.0,0.00032876,5]
[391678299,1760725856408,-500.0,0.00032876,5]
[391678301,1760725856418,-500.0,0.00032876,5]
[391678303,1760725856426,-500.0,0.00032876,5]
[391678305,1760725856435,-735.28,0.00032876,5]
[391678307,1760725856444,-354.59237267,0.00032876,5]
[391678309,1760725856455,-500.0,0.00032876,5]
[391678311,1760725856464,-936.96,0.00032876,5]
[391678313,1760725856473,-519.52,0.00032876,5]
[391678315,1760725856482,-500.0,0.00032876,5]
[391678316,1760725856491,-500.0,0.00032876,5]
[391678318,1760725856501,-500.0,0.00032876,5]
[391678320,1760725856510,-539.7,0.00032876,5]
[391678322,1760725856520,-500.0,0.00032876,5]
[391678324,1760725856530,-500.0,0.00032876,5]
[391678326,1760725856539,-545.0,0.00032876,5]
[391678328,1760725856548,-500.0,0.00032876,5]
[391678330,1760725856557,-500.0,0.00032876,5]
[391678332,1760725856567,-703.96,0.00032876,5]
[391678334,1760725856576,-502.6625881,0.00032876,5]
[391678336,1760725856585,-500.0,0.00032876,5]
[391678338,1760725856594,-741.3,0.00032876,5]
[391678340,1760725856604,-1917.86,0.00032876,2]
[391678342,1760725856614,-500.0,0.00032876,5]
[391678344,1760725856623,-500.0,0.00032876,5]
[391678346,1760725856633,-500.0,0.00032876,5]
[391678348,1760725856642,-878.46,0.00032876,5]
[391678350,1760725856651,-500.0,0.00032876,5]
[391678352,1760725856661,-705.81,0.00032876,5]
[391678354,1760725856671,-500.0,0.00032876,5]
[391678356,1760725856680,-1000.0,0.00032876,2]
[391678358,1760725856689,-500.0,0.00032876,5]
[391678360,1760725856701,-500.0,0.00032876,5]
[391678362,1760725856710,-500.0,0.00032876,5]
[391678364,1760725856719,-516.43,0.00032876,5]
[391678366,1760725856729,-500.0,0.00032876,2]
[391678368,1760725856739,-500.0,0.00032876,5]
[391678370,1760725856748,-830.69,0.00032876,5]
[391678372,1760725856757,-500.0,0.00032876,5]
[391678374,1760725856767,-1425.34,0.00032876,5]
[391678376,1760725856777,-683.45,0.00032876,3]
[391678378,1760725856787,-590.77,0.00032876,5]
[391678380,1760725856796,-500.0,0.00032876,5]
[391678382,1760725856811,-485.1449,0.00032876,5]
[391678384,1760725856821,-500.0,0.00032876,5]
[391678385,1760725856831,-622.67,0.00032876,5]
[391678387,1760725856841,-562.64,0.00032876,5]
[391678389,1760725856850,-1219.05,0.00032876,5]
[391678392,1760725856861,-716.27,0.00032876,5]
[391678394,1760725856870,-500.0,0.00032876,5]
[391678395,1760725856879,-500.0,0.00032876,5]
[391678398,1760725856890,-500.0,0.00032876,5]
[391678400,1760725856899,-500.0,0.00032876,5]
[391678402,1760725856909,-500.0,0.00032876,5]
[391678404,1760725856918,-647.06,0.00032876,5]
[391678405,1760725856927,-500.79,0.00032876,5]
[391678407,1760725856937,-500.0,0.00032876,5]
[391678410,1760725856948,-500.0,0.00032876,5]
[391678411,1760725856957,-500.0,0.00032876,5]
[391678414,1760725856967,-500.0,0.00032876,2]
[391678415,1760725856977,-344.0,0.00032908,2]
[391678417,1760725856985,-1267.33,0.00032944,60]
[391678419,1760725856995,-442.5,0.00033005,2]
[391678421,1760725857008,-1267.33,0.00033044,60]
[391678424,1760725857019,-1959.71130037,0.0003305,2]
[391678426,1760725857028,-344.0,0.00033082,2]
[391678427,1760725857038,-344.0,0.00033142,2]
[391678429,1760725857048,-1267.33,0.00033144,60]
[391678431,1760725857057,-157.728,0.00033149,2]
[391678433,1760725857067,-500.0,0.0003315,5]
[391678435,1760725857076,-500.0,0.0003315,5]
[391678437,1760725857086,-500.0,0.0003315,5]
[391678439,1760725857096,-653.4,0.0003315,5]
[391678441,1760725857105,-513.04620747,0.0003315,5]
[391678443,1760725857115,-500.0,0.0003315,5]
[391678445,1760725857126,-500.0,0.0003315,5]
[391678447,1760725857136,-500.0,0.0003315,5]
[391678449,1760725857147,-500.0,0.0003315,5]
[391678451,1760725857156,-500.0,0.0003315,5]
[391678453,1760725857165,-500.0,0.0003315,5]
[391678455,1760725857175,-500.0,0.0003315,5]
[391678457,1760725857184,-500.0,0.0003315,5]
[391678459,1760725857193,-735.28,0.0003315,5]
[391678461,1760725857204,-500.0,0.0003315,5]
[391678463,1760725857213,-936.96,0.0003315,5]
[391678465,1760725857223,-519.52,0.0003315,5]
[391678467,1760725857233,-500.0,0.0003315,5]
[391678469,1760725857244,-500.0,0.0003315,5]
[391678471,1760725857254,-500.0,0.0003315,5]
[391678473,1760725857263,-539.7,0.0003315,5]
[391678475,1760725857272,-500.0,0.0003315,5]
[391678477,1760725857283,-500.0,0.0003315,5]
[391678479,1760725857292,-545.0,0.0003315,5]
[391678481,1760725857302,-500.0,0.0003315,5]
[391678483,1760725857312,-500.0,0.0003315,5]
[391678485,1760725857322,-703.96,0.0003315,5]
[391678487,1760725857332,-500.0,0.0003315,5]
[391678489,1760725857341,-741.3,0.0003315,5]
[391678491,1760725857351,-1917.86,0.0003315,2]
[391678492,1760725857360,-500.0,0.0003315,5]
[391678494,1760725857369,-500.0,0.0003315,5]
[391678496,1760725857379,-500.0,0.0003315,5]
[391678498,1760725857388,-878.46,0.0003315,5]
[391678500,1760725857398,-500.0,0.0003315,5]
[391678502,1760725857407,-705.81,0.0003315,5]
[391678504,1760725857416,-500.0,0.0003315,5]
[391678506,1760725857425,-1000.0,0.0003315,2]
[391678508,1760725857435,-500.0,0.0003315,5]
[391678510,1760725857444,-500.0,0.0003315,5]
[391678512,1760725857454,-500.0,0.0003315,5]
[391678514,1760725857463,-516.43,0.0003315,5]
[391678516,1760725857473,-500.0,0.0003315,2]
[391678518,1760725857482,-500.0,0.0003315,5]
[391678520,1760725857491,-830.69,0.0003315,5]
[391678522,1760725857500,-500.0,0.0003315,5]